{"text_format":"3","workbook":"xlsx","n_sheets":2,"sheets":["Inventář vybavení","Nastavení"],"not_rendered":{"defined_names":4},"read":"whole","date_system":"1900"}

{"sheet":"Inventář vybavení","index":0,"n_rows":35,"n_cols":6,"rows_kept":35,"merged":[[0,1,2,2],[0,4,0,5]]}
[]
[{"$nulls":4},"Zvýraznit položky starší než:"]
[{"$nulls":4},4]
[]
[null,"ID VYBAVENÍ","NÁZEV POLOŽKY","PŘIDĚLENO","DATUM VYDÁNÍ","STÁŘÍ POLOŽKY"]
[null,"POLOŽKA0001","židle","Zaměstnanec 1",{"$f":"TODAY()-25","v":"2013-01-05"},{"$f":"IF(tblInventářVybavení[[#This Row],[DATUM VYDÁNÍ]]<>\"\",TODAY()-tblInventářVybavení[[#This Row],[DATUM VYDÁNÍ]],\"\")","v":{"v":25,"d":"25 d."}}]
[null,"POLOŽKA0002","laserová tiskárna","Zaměstnanec 2",{"$f":"TODAY()-479","v":"2011-10-09"},{"$f":"IF(tblInventářVybavení[[#This Row],[DATUM VYDÁNÍ]]<>\"\",TODAY()-tblInventářVybavení[[#This Row],[DATUM VYDÁNÍ]],\"\")","v":{"v":479,"d":"479 d."}}]
[null,"POLOŽKA0003","skener","Zaměstnanec 3",{"$f":"TODAY()-177","v":"2012-08-06"},{"$f":"IF(tblInventářVybavení[[#This Row],[DATUM VYDÁNÍ]]<>\"\",TODAY()-tblInventářVybavení[[#This Row],[DATUM VYDÁNÍ]],\"\")","v":{"v":177,"d":"177 d."}}]
[null,"POLOŽKA0004","laserová tiskárna","Zaměstnanec 7",{"$f":"TODAY()-18","v":"2013-01-12"},{"$f":"IF(tblInventářVybavení[[#This Row],[DATUM VYDÁNÍ]]<>\"\",TODAY()-tblInventářVybavení[[#This Row],[DATUM VYDÁNÍ]],\"\")","v":{"v":18,"d":"18 d."}}]
[null,"POLOŽKA0005","kávovar","Zaměstnanec 20",{"$f":"TODAY()-227","v":"2012-06-17"},{"$f":"IF(tblInventářVybavení[[#This Row],[DATUM VYDÁNÍ]]<>\"\",TODAY()-tblInventářVybavení[[#This Row],[DATUM VYDÁNÍ]],\"\")","v":{"v":227,"d":"227 d."}}]
[null,"POLOŽKA0006","skener","Zaměstnanec 14",{"$f":"TODAY()-50","v":"2012-12-11"},{"$f":"IF(tblInventářVybavení[[#This Row],[DATUM VYDÁNÍ]]<>\"\",TODAY()-tblInventářVybavení[[#This Row],[DATUM VYDÁNÍ]],\"\")","v":{"v":50,"d":"50 d."}}]
[null,"POLOŽKA0007","stůl","Zaměstnanec 4",{"$f":"TODAY()-120","v":"2012-10-02"},{"$f":"IF(tblInventářVybavení[[#This Row],[DATUM VYDÁNÍ]]<>\"\",TODAY()-tblInventářVybavení[[#This Row],[DATUM VYDÁNÍ]],\"\")","v":{"v":120,"d":"120 d."}}]
[null,"POLOŽKA0008","kopírka","Zaměstnanec 12",{"$f":"TODAY()-499","v":"2011-09-19"},{"$f":"IF(tblInventářVybavení[[#This Row],[DATUM VYDÁNÍ]]<>\"\",TODAY()-tblInventářVybavení[[#This Row],[DATUM VYDÁNÍ]],\"\")","v":{"v":499,"d":"499 d."}}]
[null,"POLOŽKA0009","další monitor","Zaměstnanec 8",{"$f":"TODAY()-30","v":"2012-12-31"},{"$f":"IF(tblInventářVybavení[[#This Row],[DATUM VYDÁNÍ]]<>\"\",TODAY()-tblInventářVybavení[[#This Row],[DATUM VYDÁNÍ]],\"\")","v":{"v":30,"d":"30 d."}}]
[null,"POLOŽKA0010","tabule","Zaměstnanec 19",{"$f":"TODAY()-50","v":"2012-12-11"},{"$f":"IF(tblInventářVybavení[[#This Row],[DATUM VYDÁNÍ]]<>\"\",TODAY()-tblInventářVybavení[[#This Row],[DATUM VYDÁNÍ]],\"\")","v":{"v":50,"d":"50 d."}}]
[null,"POLOŽKA0011","kopírka","Zaměstnanec 12",{"$f":"TODAY()-450","v":"2011-11-07"},{"$f":"IF(tblInventářVybavení[[#This Row],[DATUM VYDÁNÍ]]<>\"\",TODAY()-tblInventářVybavení[[#This Row],[DATUM VYDÁNÍ]],\"\")","v":{"v":450,"d":"450 d."}}]
[null,"POLOŽKA0012","kancelářské potřeby","Zaměstnanec 18",{"$f":"TODAY()-420","v":"2011-12-07"},{"$f":"IF(tblInventářVybavení[[#This Row],[DATUM VYDÁNÍ]]<>\"\",TODAY()-tblInventářVybavení[[#This Row],[DATUM VYDÁNÍ]],\"\")","v":{"v":420,"d":"420 d."}}]
[null,"POLOŽKA0013","další monitor","Zaměstnanec 8",{"$f":"TODAY()-250","v":"2012-05-25"},{"$f":"IF(tblInventářVybavení[[#This Row],[DATUM VYDÁNÍ]]<>\"\",TODAY()-tblInventářVybavení[[#This Row],[DATUM VYDÁNÍ]],\"\")","v":{"v":250,"d":"250 d."}}]
[null,"POLOŽKA0014","kávovar","Zaměstnanec 9",{"$f":"TODAY()-45","v":"2012-12-16"},{"$f":"IF(tblInventářVybavení[[#This Row],[DATUM VYDÁNÍ]]<>\"\",TODAY()-tblInventářVybavení[[#This Row],[DATUM VYDÁNÍ]],\"\")","v":{"v":45,"d":"45 d."}}]
[null,"POLOŽKA0015","kancelářské potřeby","Zaměstnanec 13",{"$f":"TODAY()-502","v":"2011-09-16"},{"$f":"IF(tblInventářVybavení[[#This Row],[DATUM VYDÁNÍ]]<>\"\",TODAY()-tblInventářVybavení[[#This Row],[DATUM VYDÁNÍ]],\"\")","v":{"v":502,"d":"502 d."}}]
[null,"POLOŽKA0016","skener","Zaměstnanec 1",{"$f":"TODAY()-350","v":"2012-02-15"},{"$f":"IF(tblInventářVybavení[[#This Row],[DATUM VYDÁNÍ]]<>\"\",TODAY()-tblInventářVybavení[[#This Row],[DATUM VYDÁNÍ]],\"\")","v":{"v":350,"d":"350 d."}}]
[null,"POLOŽKA0017","kopírka","Zaměstnanec 19",{"$f":"TODAY()-125","v":"2012-09-27"},{"$f":"IF(tblInventářVybavení[[#This Row],[DATUM VYDÁNÍ]]<>\"\",TODAY()-tblInventářVybavení[[#This Row],[DATUM VYDÁNÍ]],\"\")","v":{"v":125,"d":"125 d."}}]
[null,"POLOŽKA0018","tabule","Zaměstnanec 15",{"$f":"TODAY()-90","v":"2012-11-01"},{"$f":"IF(tblInventářVybavení[[#This Row],[DATUM VYDÁNÍ]]<>\"\",TODAY()-tblInventářVybavení[[#This Row],[DATUM VYDÁNÍ]],\"\")","v":{"v":90,"d":"90 d."}}]
[null,"POLOŽKA0019","židle","Zaměstnanec 16",{"$f":"TODAY()-730","v":"2011-01-31"},{"$f":"IF(tblInventářVybavení[[#This Row],[DATUM VYDÁNÍ]]<>\"\",TODAY()-tblInventářVybavení[[#This Row],[DATUM VYDÁNÍ]],\"\")","v":{"v":730,"d":"730 d."}}]
[null,"POLOŽKA0020","prachovky (1 sada)","Zaměstnanec 3",{"$f":"TODAY()-540","v":"2011-08-09"},{"$f":"IF(tblInventářVybavení[[#This Row],[DATUM VYDÁNÍ]]<>\"\",TODAY()-tblInventářVybavení[[#This Row],[DATUM VYDÁNÍ]],\"\")","v":{"v":540,"d":"540 d."}}]
[null,"POLOŽKA0021","laserová tiskárna","Zaměstnanec 7",{"$f":"TODAY()-18","v":"2013-01-12"},{"$f":"IF(tblInventářVybavení[[#This Row],[DATUM VYDÁNÍ]]<>\"\",TODAY()-tblInventářVybavení[[#This Row],[DATUM VYDÁNÍ]],\"\")","v":{"v":18,"d":"18 d."}}]
[null,"POLOŽKA0022","notebook","Zaměstnanec 8",{"$f":"TODAY()-283","v":"2012-04-22"},{"$f":"IF(tblInventářVybavení[[#This Row],[DATUM VYDÁNÍ]]<>\"\",TODAY()-tblInventářVybavení[[#This Row],[DATUM VYDÁNÍ]],\"\")","v":{"v":283,"d":"283 d."}}]
[null,"POLOŽKA0023","kancelářské potřeby","Zaměstnanec 9",{"$f":"TODAY()-479","v":"2011-10-09"},{"$f":"IF(tblInventářVybavení[[#This Row],[DATUM VYDÁNÍ]]<>\"\",TODAY()-tblInventářVybavení[[#This Row],[DATUM VYDÁNÍ]],\"\")","v":{"v":479,"d":"479 d."}}]
[null,"POLOŽKA0024","laserová tiskárna","Zaměstnanec 19",{"$f":"TODAY()-355","v":"2012-02-10"},{"$f":"IF(tblInventářVybavení[[#This Row],[DATUM VYDÁNÍ]]<>\"\",TODAY()-tblInventářVybavení[[#This Row],[DATUM VYDÁNÍ]],\"\")","v":{"v":355,"d":"355 d."}}]
[null,"POLOŽKA0025","stůl","Zaměstnanec 7",{"$f":"TODAY()-28","v":"2013-01-02"},{"$f":"IF(tblInventářVybavení[[#This Row],[DATUM VYDÁNÍ]]<>\"\",TODAY()-tblInventářVybavení[[#This Row],[DATUM VYDÁNÍ]],\"\")","v":{"v":28,"d":"28 d."}}]
[null,"POLOŽKA0026","tabule","Zaměstnanec 8",{"$f":"TODAY()-28","v":"2013-01-02"},{"$f":"IF(tblInventářVybavení[[#This Row],[DATUM VYDÁNÍ]]<>\"\",TODAY()-tblInventářVybavení[[#This Row],[DATUM VYDÁNÍ]],\"\")","v":{"v":28,"d":"28 d."}}]
[null,"POLOŽKA0027","notebook","Zaměstnanec 19",{"$f":"TODAY()-736","v":"2011-01-25"},{"$f":"IF(tblInventářVybavení[[#This Row],[DATUM VYDÁNÍ]]<>\"\",TODAY()-tblInventářVybavení[[#This Row],[DATUM VYDÁNÍ]],\"\")","v":{"v":736,"d":"736 d."}}]
[null,"POLOŽKA0028","stůl","Zaměstnanec 12",{"$f":"TODAY()-68","v":"2012-11-23"},{"$f":"IF(tblInventářVybavení[[#This Row],[DATUM VYDÁNÍ]]<>\"\",TODAY()-tblInventářVybavení[[#This Row],[DATUM VYDÁNÍ]],\"\")","v":{"v":68,"d":"68 d."}}]
[null,"POLOŽKA0029","skener","Zaměstnanec 14",{"$f":"TODAY()-67","v":"2012-11-24"},{"$f":"IF(tblInventářVybavení[[#This Row],[DATUM VYDÁNÍ]]<>\"\",TODAY()-tblInventářVybavení[[#This Row],[DATUM VYDÁNÍ]],\"\")","v":{"v":67,"d":"67 d."}}]
[null,"POLOŽKA0030","kávovar","Zaměstnanec 3",{"$f":"TODAY()-149","v":"2012-09-03"},{"$f":"IF(tblInventářVybavení[[#This Row],[DATUM VYDÁNÍ]]<>\"\",TODAY()-tblInventářVybavení[[#This Row],[DATUM VYDÁNÍ]],\"\")","v":{"v":149,"d":"149 d."}}]

{"sheet":"Nastavení","index":1,"n_rows":23,"n_cols":4,"rows_kept":23}
[]
[]
[null,"ZAMĚSTNANCI",null,"POLOŽKY"]
[null,"Zaměstnanec 1",null,"židle"]
[null,"Zaměstnanec 2",null,"kávovar"]
[null,"Zaměstnanec 3",null,"kopírka"]
[null,"Zaměstnanec 4",null,"stolní počítač"]
[null,"Zaměstnanec 5",null,"prachovky (1 sada)"]
[null,"Zaměstnanec 6",null,"další monitor"]
[null,"Zaměstnanec 7",null,"inkoustová tiskárna"]
[null,"Zaměstnanec 8",null,"notebook"]
[null,"Zaměstnanec 9",null,"laserová tiskárna"]
[null,"Zaměstnanec 10",null,"zvýrazňovače (balení 3 ks)"]
[null,"Zaměstnanec 11",null,"skener"]
[null,"Zaměstnanec 12",null,"kancelářské potřeby"]
[null,"Zaměstnanec 13",null,"stůl"]
[null,"Zaměstnanec 14",null,"USB flash disk"]
[null,"Zaměstnanec 15",null,"tabule"]
[null,"Zaměstnanec 16"]
[null,"Zaměstnanec 17"]
[null,"Zaměstnanec 18"]
[null,"Zaměstnanec 19"]
[null,"Zaměstnanec 20"]